fUST/lending_fUST_20250826
["ID","MTS","AMOUNT","RATE_DAILY","PERIOD"]
[381452316,1756216238548,-151.48,0.00029119,15]
[381452318,1756216238558,-290.17212,0.00029589,120]
[381452321,1756216238568,-258.54727729,0.0003,3]
[381452323,1756216238578,-1000.0,0.00030136,7]
[381452325,1756216238588,-151.79434548,0.00030136,7]
[381452327,1756216238599,-553.90572223,0.00030259,13]
[381452329,1756216238608,-150.879776,0.00030564,6]
[381452330,1756216238618,-198.0,0.00031279,3]
[381452332,1756216238628,-200.0,0.00031279,3]
[381452334,1756216238638,-420.0,0.00031279,2]
[381452336,1756216238649,-929.0,0.0003128,3]
[381452337,1756216238659,-400.25187031,0.00031286,5]
[381452339,1756216238670,-160.0,0.00031456,2]
[381452341,1756216238680,-2150.26629008,0.00031698,2]
[381452343,1756216238691,-160.0,0.00031739,2]
[381452344,1756216238701,-216.09257821,0.00031739,2]
[381452345,1756216238710,-160.0,0.00031739,2]
[381452346,1756216238720,-160.0,0.00031739,2]
[381452347,1756216238729,-376.39720582,0.00031739,2]
[381452348,1756216238739,-160.0,0.00031739,2]
[381452349,1756216238751,-845.07960918,0.00031739,2]
[381452350,1756216238763,-232.53539143,0.00031739,2]
[381452351,1756216238773,-160.0,0.00031739,2]
[381452352,1756216238783,-2643.48342932,0.0003176,2]
[381452353,1756216238794,-5301.14839007,0.0003179,2]
[381452354,1756216238804,-12704.43797926,0.00031795,2]
[381452355,1756216238814,-6000.0,0.00031798,4]
[381452356,1756216238823,-175.0,0.00031801,120]
[381452357,1756216238834,-217.18350301,0.00031814,2]
[381452358,1756216238844,-529.4218694,0.00031814,2]
[381452359,1756216238854,-160.0,0.00031814,2]
[381452360,1756216238863,-160.0,0.00031814,2]
[381452361,1756216238873,-313.229999,0.00031819,60]
[381452362,1756216238883,-155.02,0.0003182,3]
[381452363,1756216238894,-155.01,0.0003182,3]
[381452364,1756216238908,-549.33019013,0.00031822,60]
[381452365,1756216238917,-63879.7935007,0.0003183,2]
[381452366,1756216238927,-5556.56,0.00031831,3]
[381452367,1756216238936,-1389.14,0.00031831,3]
[381452368,1756216238946,-463.05,0.00031831,3]
[381452369,1756216238956,-231.53,0.00031831,3]
[381452370,1756216238966,-694.59,0.00031831,3]
[381452371,1756216238976,-160.0,0.00031831,3]
[381452372,1756216238986,-378.4820383,0.00031837,2]
[381452373,1756216238996,-465.08,0.00031837,3]
[381452374,1756216239006,-150.5,0.00031839,120]
[381452375,1756216239017,-217.18350301,0.00031841,3]
[381452376,1756216239027,-160.0,0.00031841,3]
[381452377,1756216239037,-160.0,0.00031841,3]
[381452378,1756216239046,-845.07960918,0.00031841,3]
[381452379,1756216239056,-376.39720582,0.00031841,3]
[381452380,1756216239066,-160.0,0.00031841,3]
[381452381,1756216239076,-232.53539143,0.00031841,3]
[381452382,1756216239085,-2778.28,0.00031841,3]
[381452383,1756216239096,-960.18487638,0.00031847,2]
[381452384,1756216239105,-960.18487638,0.00031847,2]
[381452385,1756216239116,-150.5,0.00031849,120]
[381452386,1756216239126,-217.18350301,0.00031851,30]
[381452387,1756216239136,-529.4218694,0.00031851,30]
[381452388,1756216239146,-160.0,0.00031851,30]
[381452389,1756216239158,-845.07960918,0.00031853,30]
[381452390,1756216239168,-232.53539143,0.00031853,30]
[381452391,1756216239178,-54380.66,0.00031853,30]
[381452392,1756216239188,-160.0,0.00031859,2]
[381452393,1756216239199,-181.97,0.0003186,120]
[381452394,1756216239209,-2643.48342931,0.0003187,2]
[381452395,1756216239218,-393.94895525,0.00031873,5]
[381452396,1756216239229,-500.0,0.00031873,5]
[381452397,1756216239239,-500.0,0.00031873,5]
[381452398,1756216239249,-63879.7935007,0.0003188,2]
[381452399,1756216239259,-255519.174003,0.0003189,2]
[381452400,1756216239271,-370000.0,0.000319,2]
[381452401,1756216239283,-2643.48342931,0.0003198,2]
[381452402,1756216239293,-553.90572223,0.00031986,17]
[381452403,1756216239303,-151.0,0.00032,17]
[381452404,1756216239313,-151.0,0.00032,17]
[381452405,1756216239323,-2884.8803413,0.00032019,2]
[381452406,1756216239333,-18615.7701852,0.00032019,2]
[381452407,1756216239343,-7263.3278015,0.00032019,2]
[381452408,1756216239352,-449.8032537,0.00032019,2]
[381452409,1756216239363,-446.45634399,0.00032049,2]
[381452410,1756216239373,-1785.82537597,0.00032049,2]
[381452411,1756216239383,-4018.10709592,0.00032049,2]
[381452412,1756216239394,-576.60203187,0.00032049,2]
[381452413,1756216239406,-166.06680035,0.00032049,2]
[381452414,1756216239416,-286.95973367,0.00032049,2]
[381452415,1756216239426,-1146.69109575,0.00032049,2]
[381452416,1756216239437,-663.6029342,0.00032049,2]
[381452417,1756216239447,-26495.5843025,0.00032065,2]
[381452418,1756216239458,-2643.48342931,0.0003209,2]
[381452419,1756216239469,-8000.0,0.00032116,4]
[381452420,1756216239479,-780.37630257,0.00032124,7]
[381452421,1756216239490,-501.88207925,0.00032138,5]
[381452422,1756216239500,-500.0,0.00032173,5]
[381452423,1756216239511,-2643.48342931,0.000322,2]
[381452424,1756216239521,-7000.0,0.00032221,4]
[381452425,1756216239531,-511.00425077,0.00032273,5]
[381452426,1756216239541,-500.0,0.00032273,5]
[381452427,1756216239551,-500.0,0.00032273,5]
[381452428,1756216239561,-500.0,0.00032273,5]
[381452429,1756216239571,-2427.5,0.000323,7]
[381452430,1756216239581,-5680.84,0.000323,7]
[381452431,1756216239591,-13017.62,0.000323,2]
[381452432,1756216239601,-74962.36,0.000323,7]
[381452433,1756216239610,-376.39720582,0.000323,7]
[381452434,1756216239620,-217.18350301,0.000323,7]
[381452435,1756216239631,-160.0,0.000323,7]
[381452436,1756216239640,-160.0,0.000323,7]
[381452437,1756216239652,-845.07960918,0.000323,7]
[381452438,1756216239662,-160.0,0.000323,7]
[381452439,1756216239672,-232.53539143,0.000323,7]
[381452440,1756216239682,-160.0,0.000323,7]
[381452441,1756216239692,-260.0,0.00032407,2]
[381452442,1756216239702,-500.0,0.00032492,5]
[381452443,1756216239712,-177.0,0.00032497,120]
[381452444,1756216239722,-500.0,0.000326,5]
[381452445,1756216239732,-2306.40812748,0.00032704,2]
[381452446,1756216239743,-343.40636136,0.00032721,5]
[381452447,1756216239756,-1000.0,0.000328,60]
[381452448,1756216239766,-4181.54536781,0.0003288,2]
[381452449,1756216239775,-185.64,0.0003288,30]
[381452450,1756216239786,-216.58306097,0.0003288,30]
[381452451,1756216239796,-216.58,0.0003288,30]
[381452452,1756216239805,-153.91123753,0.0003288,30]
[381452453,1756216239815,-153.91,0.0003288,30]
[381452454,1756216239825,-179.56311045,0.0003288,30]
[381452455,1756216239834,-179.56311045,0.0003288,30]
[381452456,1756216239844,-179.56311045,0.0003288,30]
[381452457,1756216239854,-179.56,0.0003288,30]
[381452458,1756216239865,-360.0,0.00032955,2]
[381452459,1756216239875,-1000.0,0.0003304,5]
[381452460,1756216239884,-1000.0,0.00033148,5]
[381452461,1756216239895,-2150.26629001,0.00033183,2]
[381452463,1756216239909,-310.04,0.0003319,3]
[381452465,1756216239919,-310.02,0.0003319,3]
[381452467,1756216239929,-150.879776,0.000332,60]
[381452469,1756216239940,-11113.12,0.00033201,3]
[381452471,1756216239950,-2778.28,0.00033201,3]
[381452473,1756216239960,-1389.14,0.00033201,3]
[381452475,1756216239971,-926.1,0.00033201,3]
[381452477,1756216239983,-463.06,0.00033201,3]
[381452479,1756216239993,-5556.56,0.00033211,3]
[381452482,1756216240004,-308.66,0.0003325,3]
[381452485,1756216240017,-250.0,0.00033304,2]
[381452487,1756216240027,-179.69451932,0.00033325,10]
[381452489,1756216240038,-175.0,0.00033391,120]
[381452491,1756216240049,-460.0,0.00033503,2]
[381452493,1756216240059,-1500.0,0.00033588,5]
[381452495,1756216240070,-150.879776,0.000336,60]
[381452497,1756216240080,-177.0,0.00033642,120]
[381452499,1756216240091,-292.58905785,0.00033696,5]
[381452501,1756216240102,-27482.7117237,0.00033699,2]
[381452517,1756216240336,-553.90572223,0.00033712,21]
[381452518,1756216240358,-587.0,0.00033747,2]
[381452519,1756216240368,-5000.0,0.0003387,4]
[381452520,1756216240377,-150.879776,0.00034,60]
[381452521,1756216240387,-565.61970278,0.00034002,2]
[381452522,1756216240396,-560.0,0.00034051,2]
[381452524,1756216240407,-150.879776,0.00034074,6]
[381452525,1756216240416,-2000.0,0.00034136,5]
[381452526,1756216240425,-164.570211,0.00034247,2]
[381452527,1756216240435,-150.879776,0.00034278,2]
[381452528,1756216240444,-150.879776,0.000344,60]
[381452529,1756216240453,-152.531139,0.000344,60]
[381452530,1756216240463,-173.074334,0.000344,60]
[381452532,1756216240472,-153.706703,0.000344,60]
[381452533,1756216240482,-150.879776,0.00034406,20]
[381452534,1756216240491,-3753.87776674,0.00034465,4]
[381452535,1756216240501,-13017.62,0.000345,14]
[381452536,1756216240510,-74962.36,0.000345,14]
[381452537,1756216240520,-151.0,0.000345,7]
[381452538,1756216240530,-151.0,0.000345,7]
[381452539,1756216240539,-151.0,0.000345,7]
[381452540,1756216240549,-284.493919,0.000345,7]
[381452541,1756216240558,-151.0,0.000345,7]
[381452542,1756216240568,-151.0,0.000345,7]
[381452543,1756216240578,-151.0,0.000345,7]
[381452544,1756216240587,-253.170716,0.000345,7]
[381452545,1756216240598,-151.0,0.000345,7]
[381452546,1756216240607,-151.0,0.000345,7]
[381452547,1756216240616,-151.0,0.000345,7]
[381452548,1756216240625,-151.0,0.000345,7]
[381452549,1756216240635,-217.093733,0.000345,7]
[381452550,1756216240644,-151.0,0.000345,7]
[381452551,1756216240655,-151.0,0.000345,7]
[381452552,1756216240666,-151.0,0.000345,7]
[381452553,1756216240675,-151.0,0.000345,7]
[381452554,1756216240685,-151.820208,0.000345,7]
[381452555,1756216240695,-151.0,0.000345,7]
[381452556,1756216240704,-151.0,0.000345,7]
[381452557,1756216240714,-151.0,0.000345,7]
[381452558,1756216240724,-151.0,0.000345,7]
[381452559,1756216240733,-151.0,0.000345,7]
[381452560,1756216240742,-151.0,0.000345,7]
[381452561,1756216240752,-266.296,0.000345,7]
[381452562,1756216240764,-151.0,0.000345,7]
[381452563,1756216240773,-151.0,0.000345,7]
[381452564,1756216240783,-151.0,0.000345,7]
[381452565,1756216240792,-151.0,0.000345,7]
[381452566,1756216240803,-151.0,0.000345,7]
[381452567,1756216240812,-151.0,0.000345,7]
[381452568,1756216240822,-151.0,0.000345,7]
[381452569,1756216240831,-151.0,0.000345,7]
[381452570,1756216240841,-151.0,0.000345,7]
[381452571,1756216240850,-151.0,0.000345,7]
[381452572,1756216240859,-151.0,0.000345,7]
[381452573,1756216240869,-151.0,0.000345,7]
[381452574,1756216240880,-151.0,0.000345,7]
[381452576,1756216240890,-151.0,0.000345,7]
[381452577,1756216240901,-234.645528,0.000345,7]
[381452578,1756216240911,-151.0,0.000345,7]
[381452579,1756216240920,-151.594813,0.000345,7]
[381452580,1756216240930,-151.611321,0.000345,7]
[381452581,1756216240939,-151.0,0.000345,7]
[381452582,1756216240949,-153.157062,0.000345,7]
[381452583,1756216240959,-151.0,0.000345,7]
[381452584,1756216240969,-151.0,0.000345,7]
[381452585,1756216240979,-151.0,0.000345,7]
[381452586,1756216240988,-151.0,0.000345,7]
[381452587,1756216240998,-151.0,0.000345,7]
[381452588,1756216241008,-161.372336,0.000345,7]
[381452589,1756216241017,-151.0,0.000345,7]
[381452590,1756216241027,-151.0,0.000345,7]
[381452591,1756216241036,-151.0,0.000345,7]
[381452592,1756216241046,-151.0,0.000345,7]
[381452593,1756216241055,-151.0,0.000345,7]
[381452594,1756216241066,-151.0,0.000345,7]
[381452595,1756216241075,-151.0,0.000345,7]
[381452596,1756216241086,-151.0,0.000345,7]
[381452597,1756216241096,-151.0,0.000345,7]
[381452598,1756216241106,-151.0,0.000345,7]
[381452599,1756216241115,-151.0,0.000345,7]
[381452600,1756216241125,-151.0,0.000345,7]
[381452601,1756216241134,-151.0,0.000345,7]
[381452602,1756216241144,-151.0,0.000345,7]
[381452603,1756216241155,-151.0,0.000345,7]
[381452604,1756216241164,-151.0,0.000345,7]
[381452605,1756216241174,-151.0,0.000345,7]
[381452606,1756216241183,-151.0,0.000345,7]
[381452607,1756216241192,-151.0,0.000345,7]
[381452608,1756216241202,-217.18350301,0.000345,7]
[381452609,1756216241212,-151.0,0.000345,7]
[381452610,1756216241222,-151.0,0.000345,7]
[381452611,1756216241231,-151.0,0.000345,7]
[381452612,1756216241241,-151.0,0.000345,7]
[381452613,1756216241250,-151.0,0.000345,7]
[381452614,1756216241259,-151.0,0.000345,7]
[381452615,1756216241268,-151.0,0.000345,7]
[381452616,1756216241278,-151.0,0.000345,7]
[381452617,1756216241287,-151.0,0.000345,7]
[381452618,1756216241297,-151.663043,0.000345,7]
[381452619,1756216241306,-151.0,0.000345,7]
[381452620,1756216241315,-151.0,0.000345,7]
[381452621,1756216241325,-151.0,0.000345,7]
[381452622,1756216241335,-151.0,0.000345,7]
[381452623,1756216241345,-151.0,0.000345,7]
[381452624,1756216241354,-243.804553,0.000345,7]
[381452625,1756216241363,-243.804553,0.000345,7]
[381452626,1756216241372,-243.804553,0.000345,7]
[381452627,1756216241382,-151.0,0.000345,7]
[381452628,1756216241391,-243.804553,0.000345,7]
[381452629,1756216241401,-151.0,0.000345,7]
[381452630,1756216241411,-151.0,0.000345,7]
[381452631,1756216241420,-151.0,0.000345,7]
[381452632,1756216241430,-151.0,0.000345,7]
[381452633,1756216241439,-151.0,0.000345,7]
[381452634,1756216241448,-151.413158,0.000345,7]
[381452635,1756216241458,-151.501775,0.000345,7]
[381452636,1756216241467,-151.957019,0.000345,7]
[381452637,1756216241477,-151.0,0.000345,7]
[381452638,1756216241486,-845.07960918,0.000345,7]
[381452639,1756216241496,-151.0,0.000345,7]
[381452640,1756216241506,-229.643304,0.000345,7]
[381452641,1756216241516,-229.643304,0.000345,7]
[381452642,1756216241526,-229.643304,0.000345,7]
[381452643,1756216241535,-229.643304,0.000345,7]
[381452644,1756216241546,-232.53539143,0.000345,7]
[381452645,1756216241556,-151.0,0.000345,7]
[381452646,1756216241565,-242.284328,0.000345,7]
[381452647,1756216241575,-242.284328,0.000345,7]
[381452648,1756216241584,-151.0,0.000345,7]
[381452649,1756216241594,-242.284328,0.000345,7]
[381452650,1756216241603,-151.0,0.000345,7]
[381452651,1756216241612,-242.284328,0.000345,7]
[381452652,1756216241622,-290.17212,0.00034521,120]
[381452653,1756216241631,-660.0,0.00034599,2]
[381452654,1756216241640,-2150.26629001,0.00034667,2]
[381452655,1756216241649,-2500.0,0.00034684,5]
[381452656,1756216241661,-501.33599703,0.0003488,5]
[381452657,1756216241670,-500.0,0.0003488,5]
[381452658,1756216241680,-500.0,0.0003488,5]
[381452659,1756216241689,-500.0,0.0003488,5]
[381452660,1756216241699,-511.0659137,0.0003488,5]
[381452661,1756216241708,-500.0,0.0003488,5]
[381452662,1756216241718,-500.0,0.0003488,5]
[381452663,1756216241727,-151.0,0.00034881,7]
[381452664,1756216241736,-151.0,0.00034881,7]
[381452665,1756216241746,-151.0,0.00034881,7]
[381452666,1756216241758,-151.0,0.00034881,7]
[381452667,1756216241769,-5680.84,0.000349,7]
[381452668,1756216241778,-500.0,0.000349,5]
[381452669,1756216241788,-500.0,0.000349,5]
[381452670,1756216241798,-529.46310268,0.00035,120]
[381452671,1756216241808,-1500.0,0.00035,2]
[381452672,1756216241817,-1500.0,0.00035,2]
[381452673,1756216241827,-1500.0,0.00035,2]
[381452674,1756216241837,-1500.0,0.00035,2]
[381452675,1756216241848,-1874.64,0.00035,2]
[381452676,1756216241858,-2427.5,0.00035,7]
[381452677,1756216241868,-2389.42967797,0.00035,4]
[381452678,1756216241878,-5406.13953124,0.00035,2]
[381452679,1756216241887,-1722.64039975,0.00035,120]
[381452680,1756216241897,-5301.14839007,0.00035023,2]
[381452681,1756216241908,-500.0,0.00035056,5]
[381452682,1756216241918,-760.0,0.00035146,2]
[381452683,1756216241927,-501.38178286,0.00035167,5]
[381452684,1756216241937,-500.0,0.00035167,5]
[381452685,1756216241948,-500.0,0.00035167,5]
[381452686,1756216241957,-500.0,0.00035167,5]
[381452687,1756216241967,-500.0,0.00035167,5]
[381452688,1756216241977,-1488.21088667,0.00035232,5]
[381452689,1756216241986,-174.545246,0.00035297,2]
[381452690,1756216241997,-5184.22886855,0.00035314,2]
[381452691,1756216242007,-177.0,0.00035324,120]
[381452692,1756216242016,-1000.0,0.00035428,5]
[381452693,1756216242026,-1000.0,0.00035428,5]
[381452694,1756216242035,-278.65759755,0.00035428,5]
[381452695,1756216242045,-1000.0,0.00035428,5]
[381452696,1756216242054,-1000.0,0.00035428,5]
[381452697,1756216242063,-553.90572223,0.00035439,24]
[381452698,1756216242073,-500.0,0.00035448,5]
[381452699,1756216242082,-1000.0,0.00035448,5]
[381452700,1756216242092,-151.0,0.000356,19]
[381452701,1756216242102,-1000.0,0.00035604,5]
[381452702,1756216242111,-500.0,0.00035616,7]
[381452703,1756216242121,-500.0,0.00035616,7]
[381452704,1756216242131,-500.0,0.00035616,7]
[381452705,1756216242140,-500.0,0.00035616,7]
[381452706,1756216242150,-500.0,0.00035616,7]
[381452707,1756216242159,-500.0,0.00035616,7]
[381452708,1756216242168,-500.0,0.00035616,7]
[381452709,1756216242177,-500.0,0.00035616,7]
[381452710,1756216242187,-500.0,0.00035616,7]
[381452711,1756216242196,-500.0,0.00035616,7]
[381452712,1756216242206,-500.0,0.00035616,7]
[381452713,1756216242215,-500.0,0.00035616,7]
[381452714,1756216242224,-500.0,0.00035616,7]
[381452715,1756216242235,-500.0,0.00035616,7]
[381452716,1756216242245,-222.74447867,0.00035616,7]
[381452717,1756216242255,-500.0,0.00035616,7]
[381452718,1756216242264,-500.0,0.00035616,7]
[381452719,1756216242273,-500.0,0.00035616,7]
[381452720,1756216242283,-500.0,0.00035616,7]
[381452721,1756216242293,-500.0,0.00035616,7]
[381452722,1756216242302,-500.0,0.00035616,7]
[381452723,1756216242312,-500.0,0.00035616,7]
[381452724,1756216242323,-499.99999999,0.00035616,7]
[381452725,1756216242332,-860.0,0.00035694,2]
[381452726,1756216242341,-500.0,0.00035715,5]
[381452727,1756216242351,-1000.0,0.00035715,5]
[381452728,1756216242360,-1000.0,0.00035715,5]
[381452729,1756216242370,-1000.0,0.00035715,5]
[381452730,1756216242380,-160.0,0.00035732,3]
[381452731,1756216242390,-500.0,0.00035959,5]
[381452732,1756216242399,-500.0,0.00035959,5]
[381452733,1756216242408,-1000.0,0.00035976,5]
[381452734,1756216242420,-1500.0,0.00035976,5]
[381452735,1756216242430,-500.0,0.00035976,5]
[381452736,1756216242439,-1500.0,0.00035976,5]
[381452737,1756216242449,-29408.809122,0.00036,3]
[381452738,1756216242458,-74962.36,0.00036,14]
[381452739,1756216242468,-311.94719537,0.00036,120]
[381452740,1756216242478,-217.18350301,0.00036,3]
[381452741,1756216242487,-845.07960918,0.00036,3]
[381452742,1756216242496,-232.53539143,0.00036,3]
[381452743,1756216242506,-500.0,0.00036017,5]
[381452744,1756216242515,-13017.62,0.000361,14]
[381452745,1756216242524,-1006.2646628,0.00036151,5]
[381452746,1756216242534,-2150.26629001,0.00036152,2]
[381452747,1756216242543,-4153.7397827,0.00036165,2]
[381452748,1756216242553,-1620.6674955,0.00036165,2]
[381452749,1756216242563,-5911.9639686,0.00036217,2]
[381452750,1756216242573,-960.0,0.00036242,2]
[381452751,1756216242583,-392.26872128,0.00036263,5]
[381452752,1756216242592,-1500.0,0.00036263,5]
[381452753,1756216242602,-732.66998372,0.00036263,5]
[381452754,1756216242612,-823.0,0.0003641,2]
[381452755,1756216242623,-150.879776,0.00036492,2]
[381452756,1756216242632,-1000.0,0.00036507,5]
[381452757,1756216242642,-960.1691623,0.00036507,5]
[381452758,1756216242652,-2000.0,0.00036524,5]
[381452759,1756216242662,-292.14363601,0.00036524,5]
[381452760,1756216242672,-1000.0,0.00036565,5]
[381452761,1756216242682,-1060.0,0.0003679,2]
[381452762,1756216242692,-471.7674995,0.00036811,5]
[381452763,1756216242702,-763.5,0.00036853,120]
[381452764,1756216242765,-2427.5,0.000369,7]
[381452765,1756216242776,-5680.84,0.000369,7]
[381452766,1756216242786,-150.879776,0.0003691,20]
[381452767,1756216242796,-187.09935736,0.00036991,14]
[381452768,1756216242805,-230.44620326,0.00037055,5]
[381452769,1756216242814,-2500.0,0.00037072,5]
[381452770,1756216242824,-926.8246229,0.0003709,2]
[381452771,1756216242834,-361.6197978,0.0003709,2]
[381452772,1756216242844,-10967.62008935,0.00037101,2]
[381452773,1756216242853,-500.0,0.00037113,5]
[381452774,1756216242863,-1319.1374671,0.00037144,2]
[381452775,1756216242873,-553.90572223,0.00037166,28]
[381452776,1756216242883,-74962.36,0.000372,14]
[381452777,1756216242893,-151.0,0.000372,30]
[381452778,1756216242905,-151.0,0.000372,30]
[381452779,1756216242915,-151.0,0.000372,30]
[381452780,1756216242924,-151.0,0.000372,30]
[381452781,1756216242934,-151.0,0.000372,30]
[381452782,1756216242944,-151.0,0.000372,14]
[381452783,1756216242954,-151.0,0.000372,30]
[381452784,1756216242963,-151.0,0.000372,30]
[381452785,1756216242973,-151.0,0.000372,30]
[381452786,1756216242982,-151.0,0.000372,30]
[381452787,1756216242992,-151.0,0.000372,30]
[381452789,1756216243001,-151.0,0.000372,30]
[381452791,1756216243011,-151.0,0.000372,30]
[381452793,1756216243021,-151.0,0.000372,30]
[381452794,1756216243031,-151.0,0.000372,30]
[381452796,1756216243041,-151.0,0.000372,30]
[381452797,1756216243051,-151.0,0.000372,15]
[381452798,1756216243061,-151.0,0.000372,15]
[381452799,1756216243070,-281.001005,0.000372,30]
[381452800,1756216243079,-151.0,0.000372,30]
[381452801,1756216243089,-156.93071,0.000372,30]
[381452802,1756216243098,-151.0,0.000372,30]
[381452803,1756216243107,-151.0,0.000372,30]
[381452804,1756216243117,-151.0,0.000372,30]
[381452805,1756216243127,-151.0,0.000372,30]
[381452806,1756216243137,-151.0,0.000372,30]
[381452807,1756216243146,-151.0,0.000372,30]
[381452808,1756216243159,-151.0,0.000372,30]
[381452809,1756216243168,-151.0,0.000372,30]
[381452810,1756216243177,-151.0,0.000372,30]
[381452812,1756216243187,-151.0,0.000372,30]
[381452813,1756216243196,-151.0,0.000372,30]
[381452814,1756216243205,-243.942292,0.000372,30]
[381452815,1756216243215,-151.0,0.000372,30]
[381452816,1756216243225,-151.0,0.000372,30]
[381452817,1756216243234,-151.0,0.000372,30]
[381452818,1756216243243,-151.0,0.000372,30]
[381452819,1756216243252,-151.0,0.000372,30]
[381452820,1756216243262,-151.0,0.000372,30]
[381452821,1756216243272,-151.0,0.000372,30]
[381452822,1756216243281,-155.294016,0.000372,30]
[381452823,1756216243290,-151.0,0.000372,30]
[381452824,1756216243301,-151.0,0.000372,30]
[381452825,1756216243310,-151.0,0.000372,30]
[381452826,1756216243319,-151.0,0.000372,30]
[381452827,1756216243329,-151.0,0.000372,30]
[381452828,1756216243339,-151.0,0.000372,30]
[381452829,1756216243348,-298.506768,0.000372,30]
[381452830,1756216243358,-151.0,0.000372,30]
[381452831,1756216243367,-151.0,0.000372,30]
[381452832,1756216243376,-151.0,0.000372,30]
[381452833,1756216243385,-151.0,0.000372,30]
[381452834,1756216243395,-151.0,0.000372,30]
[381452835,1756216243406,-151.0,0.000372,30]
[381452836,1756216243415,-151.0,0.000372,30]
[381452837,1756216243424,-151.0,0.000372,30]
[381452838,1756216243433,-151.0,0.000372,30]
[381452839,1756216243443,-151.0,0.000372,30]
[381452840,1756216243453,-151.893212,0.000372,30]
[381452841,1756216243462,-151.0,0.000372,30]
[381452842,1756216243472,-151.0,0.000372,30]
[381452843,1756216243482,-151.0,0.000372,30]
[381452844,1756216243491,-151.0,0.000372,30]
[381452845,1756216243501,-151.0,0.000372,30]
[381452846,1756216243511,-151.0,0.000372,30]
[381452847,1756216243520,-151.0,0.000372,30]
[381452848,1756216243530,-151.0,0.000372,30]
[381452849,1756216243540,-248.439467,0.000372,30]
[381452850,1756216243550,-151.0,0.000372,30]
[381452851,1756216243560,-243.804553,0.000372,30]
[381452852,1756216243570,-243.804553,0.000372,30]
[381452853,1756216243580,-243.804553,0.000372,30]
[381452854,1756216243589,-243.804553,0.000372,30]
[381452855,1756216243599,-151.0,0.000372,30]
[381452856,1756216243608,-151.0,0.000372,30]
[381452857,1756216243617,-151.0,0.000372,30]
[381452858,1756216243627,-151.0,0.000372,30]
[381452859,1756216243637,-151.0,0.000372,30]
[381452860,1756216243646,-151.0,0.000372,30]
[381452861,1756216243659,-229.643304,0.000372,30]
[381452862,1756216243669,-229.643304,0.000372,30]
[381452863,1756216243678,-229.643304,0.000372,30]
[381452864,1756216243688,-229.643304,0.000372,30]
[381452865,1756216243697,-242.284328,0.000372,30]
[381452866,1756216243707,-242.284328,0.000372,30]
[381452867,1756216243717,-151.0,0.000372,30]
[381452868,1756216243726,-242.284328,0.000372,30]
[381452869,1756216243736,-242.284328,0.000372,30]
[381452870,1756216243745,-985.79,0.00037201,2]
[381452871,1756216243755,-638.0,0.00037201,2]
[381452872,1756216243766,-2156.0,0.00037201,2]